lending/lending_fUSD_20240112
["ID","MTS","AMOUNT","RATE_DAILY","PERIOD"]
[311418629,1705081839842,-155.40537843,0.00022496,2]
[311418631,1705081839852,-155.37801653,0.00022496,2]
[311418632,1705081840072,-183.68968646,0.00022496,2]
[311418633,1705081840082,-1367.77902648,0.00022496,2]
[311418634,1705081840092,-223.97923977,0.00022496,2]
[311418635,1705081840104,-155.0,0.00022496,2]
[311418636,1705081840114,-155.0,0.00022496,2]
[311418637,1705081840125,-581.87642113,0.00022496,2]
[311418638,1705081840134,-177.58207543,0.00022496,2]
[311418639,1705081840145,-524.36087443,0.00022496,2]
[311418640,1705081840155,-174.61934402,0.00022496,2]
[311418641,1705081840164,-155.3250375,0.00022496,2]
[311418642,1705081840174,-242.44654232,0.00022496,2]
[311418643,1705081840183,-574.35128739,0.00022496,2]
[311418644,1705081840193,-1426.97468348,0.00022496,2]
[311418645,1705081840202,-173.17825121,0.00022496,2]
[311418646,1705081840211,-1776.90277835,0.00022496,2]
[311418647,1705081840220,-155.40188375,0.00022496,2]
[311418648,1705081840230,-364.67620993,0.00022497,2]
[311418649,1705081840240,-155.0,0.00022497,2]
[311418650,1705081840249,-257.16711397,0.00022497,2]
[311418651,1705081840259,-155.0,0.00022497,2]
[311418652,1705081840269,-1547.94934701,0.00022497,2]
[311418653,1705081840279,-256.57247082,0.00022497,2]
[311418654,1705081840288,-197.42849555,0.00022497,2]
[311418655,1705081840297,-155.27998424,0.00022497,2]
[311418656,1705081840307,-155.64640327,0.00022498,2]
[311418657,1705081840316,-155.0,0.00022498,2]
[311418658,1705081840326,-403.76748934,0.00022498,2]
[311418659,1705081840335,-540.4647031,0.00022498,2]
[311418660,1705081840345,-3001.53867376,0.00022498,2]
[311418661,1705081840355,-318.31330327,0.00022498,2]
[311418662,1705081840365,-163.7690261,0.00022498,2]
[311418663,1705081840377,-207.56937403,0.00022498,2]
[311418664,1705081840387,-1654.6697476,0.00022498,2]
[311418665,1705081840397,-2066.92786203,0.00022498,2]
[311418666,1705081840407,-2580.00013988,0.00022498,2]
[311418667,1705081840417,-173.89319056,0.00022498,2]
[311418668,1705081840426,-155.0,0.00022498,2]
[311418669,1705081840435,-230.64175419,0.00022498,2]
[311418670,1705081840444,-155.04439657,0.00022498,2]
[311418671,1705081840454,-360.95758828,0.00022498,2]
[311418672,1705081840463,-766.91078743,0.00022498,2]
[311418673,1705081840471,-155.41643669,0.00022498,2]
[311418674,1705081840481,-2943.97850092,0.00022498,2]
[311418675,1705081840491,-701.29346817,0.00022498,2]
[311418676,1705081840501,-399.94387595,0.00022498,2]
[311418677,1705081840510,-1512.87812572,0.00022498,2]
[311418678,1705081840520,-569.69468918,0.00022498,2]
[311418679,1705081840530,-3689.62830491,0.00022498,2]
[311418680,1705081840540,-267.87940167,0.00022498,2]
[311418681,1705081840551,-526.13222248,0.00022498,2]
[311418682,1705081840560,-218.50920252,0.00022498,2]
[311418683,1705081840571,-376555.21955798,0.00022498,2]
[311418685,1705081840584,-163971.31992642,0.00022498,2]
[311418688,1705081840866,-40858.39110353,0.00022498,2]
[311418689,1705081840884,-515.8,0.00022498,2]
[311418690,1705081841174,-5169.11760026,0.00022498,2]
[311418691,1705081841203,-514.59764952,0.00022498,2]
[311418692,1705081841414,-1255.3554716,0.00022498,2]
[311418693,1705081841501,-546.23322818,0.00022498,2]
[311418694,1705081841514,-3190.43275924,0.00022498,2]
[311418795,1705081843232,-1032.64,0.00022498,2]
[311418797,1705081843347,-19296.23149308,0.00022498,2]
[311418805,1705081843413,-5312.37836575,0.00022498,2]
[311418809,1705081843720,-1945.1805014,0.00022498,2]
[311418810,1705081843732,-1034.62837885,0.00022498,2]
[311418811,1705081843782,-78149.33256133,0.00022498,2]
[311418813,1705081843792,-39069.10772077,0.000225,2]
[311418815,1705081843802,-6374.0,0.000225,2]
[311418817,1705081843812,-189.10579447,0.000225,2]
[311418819,1705081843821,-154.94769829,0.000225,2]
[311418821,1705081843831,-2479.95244215,0.000226,2]
[311418916,1705081846304,-43039.51004514,0.000226,2]
[311418917,1705081846322,-323062.28507134,0.000226,2]
[311418918,1705081846363,-9711.02532327,0.000226,2]
[311418919,1705081846533,-3322.27056186,0.00022599,2]
[311418920,1705081846546,-22462.72943824,0.000226,2]
[311418921,1705081846708,-344.7481,0.000226,2]
[311418922,1705081846722,-10874.30709321,0.000226,2]
[311418992,1705081876647,1000.0,0.00022396,2]
[311418994,1705081894928,2644.1967,0.00022383,2]
[311418995,1705081907857,500.0,0.000192,2]
[311418996,1705081961289,418.39942505,0.00021691,2]
[311418997,1705081965972,408.5114,0.00022384,2]
[311418998,1705081981616,161.57,0.00021976,2]
[311418999,1705081981898,161.57,0.00022251,2]
[311419000,1705081988942,1020.79972294,0.0002,2]
[311419001,1705081989020,7409.21190249,0.000192,2]
[311419002,1705081992877,18932.66999613,0.000192,2]
[311419003,1705081996113,1596.49083475,0.0001536,2]
[311419004,1705081999541,531.67628362,0.000192,2]
[311419006,1705082011847,158.76,0.00021828,2]
[311419007,1705082012098,1595.42271423,0.0001536,2]
[311419009,1705082014892,5050.05047375,0.000192,2]
[311419010,1705082017530,531.22648652,0.000192,2]
[311419011,1705082020163,1000.0,0.00021828,2]
[311419012,1705082035528,531.45138507,0.000192,2]
[311419014,1705082047554,7409.21190249,0.000192,2]
[311419016,1705082051528,528.15706336,0.000192,2]
[311419017,1705082065373,578.0,0.00022,2]
[311419018,1705082097786,354.54922476,0.000192,2]
[311419019,1705082110372,245.6040966,0.00022424,2]
[311419020,1705082115386,245.60409645,0.00022449,2]
[311419022,1705082134173,155.0,0.00022,2]
[311419023,1705082138625,250.0,0.00022,2]
[311419024,1705082139911,250.0,0.00022274,2]
[311419025,1705082150185,155.73745419,0.00022,2]
[311419026,1705082154933,1020.79972294,0.0002,2]
[311419027,1705082156700,157.82,0.00021804,2]
[311419037,1705082178275,300.0,0.00022,2]
[311419039,1705082203600,2000.0,0.00021588,2]
[311419040,1705082204950,882.64748262,0.00021804,2]
[311419041,1705082210791,155.77362978,0.00021804,2]
[311419042,1705082219086,281.95610178,0.00021804,2]
[311419043,1705082220900,538.45152826,0.0002115,2]
[311419044,1705082221696,1026.5057253,0.00021804,2]
[311419045,1705082228521,-2000.0,0.00022472,2]
[311419046,1705082229286,155.0,0.00021804,2]
[311419047,1705082229607,-2000.0,0.00022472,2]
[311419048,1705082230639,-172.57627997,0.00022472,2]
[311419049,1705082230661,-346.81728077,0.00022472,2]
[311419050,1705082230684,-245.60409645,0.00022474,2]
[311419051,1705082230707,-314.05012087,0.00022499,2]
[311419052,1705082230731,-245.60409645,0.00022499,2]
[311419053,1705082230757,-675.34812549,0.00022515,2]
[311419054,1705082231181,-336.7179586,0.00022471,2]
[311419055,1705082231202,-53.43187451,0.00022515,2]
[311419056,1705082231225,-245.60409645,0.00022524,2]
[311419057,1705082231247,-724.26,0.00022525,2]
[311419058,1705082231271,-639.98607044,0.00022525,2]
[311419059,1705082231877,-75.16392956,0.00022525,2]
[311419060,1705082231899,-161.57,0.00022526,2]
[311419061,1705082231920,-362.81812567,0.00022548,2]
[311419062,1705082231941,-245.60409645,0.00022549,2]
[311419063,1705082231961,-245.60409645,0.00022574,2]
[311419064,1705082231982,-718.36,0.00022576,2]
[311419065,1705082232003,-190.87975187,0.00022585,2]
[311419066,1705082232320,-528.28024813,0.00022585,2]
[311419067,1705082232341,-728.68,0.00022585,2]
[311419068,1705082232362,-562.39273662,0.00022586,2]
[311419069,1705082232382,-150.0,0.00022593,2]
[311419070,1705082232403,-30.64701525,0.00022595,2]
[311419071,1705082232785,-698.47028769,0.00022471,2]
[311419072,1705082232806,-962.18876714,0.00022595,2]
[311419073,1705082232826,-336.92043028,0.00022595,2]
[311419074,1705082232846,-2.42051489,0.00022595,2]
[311419075,1705082233256,287.55,0.00019675,2]
[311419076,1705082233318,-225.92244252,0.00022595,2]
[311419077,1705082233338,-155.99464519,0.00022595,2]
[311419078,1705082233360,-1618.08291229,0.00022595,2]
[311419079,1705082233597,287.55,0.00021939,2]
[311419080,1705082233632,-2000.0,0.00022595,2]
[311419081,1705082234149,-528.34979913,0.00022595,2]
[311419082,1705082234171,-369.92055027,0.00022595,2]
[311419083,1705082234191,-262.45719523,0.00022596,2]
[311419084,1705082234211,-341.69258387,0.00022596,2]
[311419085,1705082234232,-497.5798715,0.00022596,2]
[311419086,1705082234572,-2000.0,0.00022596,2]
[311419087,1705082234959,-2000.0,0.00022596,2]
[311419088,1705082235355,-114.90658518,0.00022596,2]
[311419089,1705082235375,-220.13775132,0.00022597,2]
[311419090,1705082235397,-1664.9556635,0.00022597,2]
[311419091,1705082235815,-2000.0,0.00022597,2]
[311419092,1705082236318,-2000.0,0.00022597,2]
[311419093,1705082237518,845.79159394,0.00021804,2]
[311419094,1705082239483,-2000.0,0.00022597,2]
[311419095,1705082240039,-2000.0,0.00022597,2]
[311419096,1705082240227,-2000.0,0.00022597,2]
[311419097,1705082240544,-2000.0,0.00022597,2]
[311419098,1705082240737,155.0,0.00021804,2]
[311419099,1705082240909,-2000.0,0.00022597,2]
[311419100,1705082242042,155.0,0.00021804,2]
[311419101,1705082242978,155.0,0.00021804,2]
[311419102,1705082243014,316.51956569,0.00021586,2]
[311419103,1705082243391,155.0,0.00021804,2]
[311419104,1705082244170,155.79529648,0.00021804,2]
[311419105,1705082245722,168.02316925,5e-05,2]
[311419106,1705082247343,1021.99046013,0.00021804,2]
[311419107,1705082247478,235.79469252,0.00021804,2]
[311419108,1705082251519,-491.3347,0.00022497,2]
[311419109,1705082251544,-718.08,0.00022596,2]
[311419110,1705082251565,-790.5853,0.00022596,5]
[311419111,1705082251859,-305.31267255,0.00022596,5]
[311419112,1705082251880,-679.98377378,0.00022596,2]
[311419113,1705082251901,-1014.70355367,0.00022597,2]
[311419114,1705082252186,-2000.0,0.00022597,2]
[311419115,1705082252242,1274.96750604,0.00021804,5]
[311419116,1705082252511,-2000.0,0.00022597,2]
[311419117,1705082252799,788.75024954,0.00021804,2]
[311419118,1705082252851,155.0,0.00021804,2]
[311419119,1705082252877,-2000.0,0.00022597,2]
[311419120,1705082253179,-2000.0,0.00022597,2]
[311419121,1705082253496,-2000.0,0.00022597,2]
[311419122,1705082253821,-2000.0,0.00022597,2]
[311419123,1705082254162,-2000.0,0.00022597,2]
[311419124,1705082254376,176.90983531,0.00021804,2]
[311419125,1705082254442,291.82081919,0.00021804,2]
[311419126,1705082254482,-2000.0,0.00022597,2]
[311419127,1705082254894,206.8876125,0.00021804,2]
[311419128,1705082255232,169.80821327,0.00021804,2]
[311419129,1705082255363,155.82902494,0.00021804,2]
[311419130,1705082256365,168.58587249,0.00021804,2]
[311419131,1705082256972,283.72064284,0.00021804,2]
[311419132,1705082257990,758.18917701,0.00021804,2]
[311419133,1705082258229,360.50027838,0.00021804,2]
[311419134,1705082259201,280.78257921,0.00021804,2]
[311419135,1705082259320,155.87221421,0.00021804,2]
[311419136,1705082260738,155.0,0.00021804,2]
[311419137,1705082260891,401.90417909,0.0002115,2]
[311419138,1705082262034,155.0,0.00021804,2]
[311419139,1705082262156,155.0,0.00021804,2]
[311419140,1705082262439,204.56795186,0.00021804,2]
[311419141,1705082262564,155.0,0.00021804,2]
[311419142,1705082263080,282.23575241,0.00021804,2]
[311419143,1705082263351,446.64129223,0.00020468,2]
[311419144,1705082264537,155.0,0.00021804,2]
[311419145,1705082264950,1016.19080931,0.00021804,2]
[311419146,1705082264979,155.24335567,0.00021804,2]
[311419147,1705082266963,883.53200133,0.00021804,2]
[311419148,1705082267690,1031.56152328,0.00021804,2]
[311419149,1705082268323,282.67530798,0.00021804,2]
[311419150,1705082268831,155.0,0.00021804,2]
[311419151,1705082270363,176.90983531,0.00021804,2]
[311419152,1705082270422,291.35371355,0.00021804,2]
[311419153,1705082272207,532.55789459,0.00021804,2]
[311419154,1705082272243,1274.96750604,0.00021804,5]
[311419155,1705082272340,732.05269482,0.00021804,2]
[311419156,1705082273290,543.24680198,0.00021804,2]
[311419157,1705082274452,855.73420293,0.00021804,2]
[311419158,1705082274667,3197.79936034,0.00022,2]
[311419159,1705082274949,283.72064284,0.00021804,2]
[311419160,1705082275514,845.11321729,0.00021804,2]
[311419161,1705082275556,7411.89166272,0.00021804,2]
[311419162,1705082276194,360.50027838,0.00021804,2]
[311419163,1705082276245,217.6419019,0.00021804,2]
[311419164,1705082277402,18932.66999613,0.00021804,2]
[311419165,1705082278744,5182.0088255,0.00021804,2]
[311419166,1705082278826,155.0,0.00021804,2]
[311419167,1705082278989,1362.16515976,0.00021586,2]
[311419168,1705082280375,1596.49083475,0.00017443,2]
[311419169,1705082280434,155.0,0.00021804,2]
[311419170,1705082280918,213.51970308,0.0002115,2]
[311419171,1705082280959,1021.19252463,0.00021804,2]
[311419172,1705082282169,1892.11622104,0.00021804,2]
[311419173,1705082282517,155.0,0.00021804,2]
[311419174,1705082283178,608.76242079,0.00021804,2]
[311419175,1705082284040,155.0,0.00021804,2]
[311419176,1705082285638,-446.64129223,0.00022596,2]
[311419177,1705082285660,-711.85,0.00022597,2]
[311419178,1705082285683,-841.50870777,0.00022597,2]
[311419179,1705082286349,-2000.0,0.00022597,2]
[311419180,1705082286377,176.98991788,0.00021804,2]
[311419181,1705082286533,155.0,0.00021804,2]
[311419182,1705082286570,6072.64665498,0.00021804,2]
[311419183,1705082286836,155.0,0.00021804,2]
[311419184,1705082286953,883.53200133,0.00021804,2]
[311419185,1705082287080,-2000.0,0.00022597,2]
[311419186,1705082287145,282.23575241,0.00021804,2]
[311419187,1705082287684,1031.56152328,0.00021804,2]
[311419188,1705082288091,378.76513653,0.00021804,2]
[311419189,1705082289573,531.45138507,0.00021804,2]
[311419190,1705082292235,532.55789459,0.00021804,2]
[311419191,1705082292329,1269.3345036,0.00021804,5]
[311419192,1705082292723,781.74239123,0.00022,2]
[311419193,1705082293559,845.11321729,0.00021804,2]
[311419194,1705082294163,155.0,0.00021804,2]
[311419195,1705082294362,1095.55776116,0.00021804,2]
[311419196,1705082294453,854.98308851,0.00021804,2]
[311419197,1705082295404,18932.66999613,0.00021804,2]
[311419198,1705082295597,7411.89166272,0.00021804,2]
[311419199,1705082296821,15676.33896332,0.00021804,2]
[311419200,1705082296954,1021.19252463,0.00021804,2]
[311419201,1705082296983,283.72064284,0.00021804,2]
[311419202,1705082297279,543.47920788,0.00021804,2]
[311419203,1705082298119,1596.49083475,0.00017443,2]
[311419204,1705082298908,401.58703631,0.0002115,2]
[311419205,1705082299632,608.63905508,0.00021804,2]
[311419206,1705082299659,-712.24,0.00022597,2]
[311419207,1705082299680,-1287.76,0.00022597,2]
[311419208,1705082299790,-2000.0,0.00022597,2]
[311419209,1705082300012,-2000.0,0.00022597,2]
[311419210,1705082300166,1888.97720964,0.00021804,2]
[311419211,1705082300198,360.50027838,0.00021804,2]
[311419212,1705082300348,-2000.0,0.00022597,2]
[311419213,1705082301020,-2000.0,0.00022597,2]
[311419214,1705082301505,-2000.0,0.00022597,2]
[311419216,1705082302045,242.88431625,0.00021804,2]
[311419217,1705082302197,-2000.0,0.00022597,2]
[311419218,1705082302530,155.0,0.00021804,2]
[311419219,1705082302566,155.0,0.00021804,2]
[311419220,1705082302720,155.0,0.00021804,2]
[311419221,1705082306312,5182.0088255,0.00021804,2]
[311419222,1705082306431,291.58726637,0.00021804,2]
[311419223,1705082306534,6072.64665498,0.00021804,2]
[311419224,1705082306835,263.23464751,0.00021804,2]
[311419225,1705082306975,883.53200133,0.00021804,2]
[311419226,1705082307121,282.23575241,0.00021804,2]
[311419227,1705082309368,446.64129223,0.0002011,2]
[311419228,1705082309518,845.11321729,0.00021804,2]
[311419229,1705082310351,1096.02714429,0.00021804,2]
[311419230,1705082310385,176.98991788,0.00021804,2]
[311419231,1705082311567,535.52856936,0.00021804,2]
[311419232,1705082311677,-2000.0,0.00022597,2]
[311419233,1705082312175,155.0,0.00021804,2]
[311419234,1705082313087,-2000.0,0.00022597,2]
[311419235,1705082314462,856.04090584,0.00021804,2]
[311419236,1705082314799,15683.21613264,0.00021804,2]
[311419237,1705082314970,283.72064284,0.00021804,2]
[311419238,1705082315419,18932.66999613,0.00021804,2]
[311419239,1705082316959,1021.19252463,0.00021804,2]
[311419240,1705082317319,543.47920788,0.00021804,2]
[311419241,1705082318163,1890.54671534,0.00021804,2]
[311419242,1705082318215,360.50027838,0.00021804,2]
[311419243,1705082318476,-2000.0,0.00022597,2]
[311419244,1705082318899,403.28352331,0.0002115,2]
[311419245,1705082319199,-2000.0,0.00022597,2]
[311419246,1705082319337,728.00554382,0.00021,2]
[311419247,1705082320121,1596.02913964,0.00017443,2]
[311419248,1705082320691,304.23735471,0.00021804,2]
[311419249,1705082320719,155.0,0.00021804,2]
[311419250,1705082320776,155.0,0.00021804,2]
[311419251,1705082321268,155.0,0.0002,2]
[311419252,1705082325095,282.23575241,0.00021804,2]
[311419253,1705082326339,5182.0088255,0.00021804,2]
[311419254,1705082326540,6072.64665498,0.00021804,2]
[311419255,1705082327909,166.36,0.00021966,2]
[311419256,1705082328191,224.01258322,0.00021804,2]
[311419257,1705082328345,1095.08837803,0.00021804,2]
[311419258,1705082328379,176.98991788,0.00021804,2]
[311419259,1705082328430,291.71338211,0.00021804,2]
[311419260,1705082328712,532.75409653,0.00021804,2]
[311419261,1705082328952,883.53200133,0.00021804,2]
[311419262,1705082329513,845.11321729,0.00021804,2]
[311419263,1705082329566,2691.28194893,0.00021804,2]
[311419264,1705082329690,1031.99438221,0.00021804,2]
[311419265,1705082331399,408.89966322,0.0002011,2]
[311419266,1705082332454,856.04090584,0.00021804,2]
[311419267,1705082332823,620.82398002,0.00022078,2]
[311419268,1705082332960,1021.19252463,0.00021804,2]
[311419269,1705082333281,543.47920788,0.00021804,2]
[311419270,1705082334820,-314.05012087,0.000225,2]
[311419271,1705082334842,-166.36,0.00022538,2]
[311419272,1705082334863,-738.26,0.00022597,2]
[311419273,1705082334886,-800.32987913,0.00022597,2]
[311419274,1705082336959,282.39821502,0.00021804,2]
[311419275,1705082337902,18932.66999613,0.00021804,2]
[311419276,1705082338580,189.44894637,0.00021804,2]
[311419277,1705082340208,360.50027838,0.00021804,2]
[311419278,1705082342315,5182.0088255,0.00021804,2]
[311419279,1705082343323,728.00554382,0.00021,2]
[311419280,1705082344368,1090.81313736,0.00021804,2]
[311419281,1705082344798,15683.21613264,0.00021804,2]
[311419282,1705082344959,883.53200133,0.00021804,2]
[311419283,1705082345694,605.00984432,0.00021804,2]
[311419284,1705082346441,291.71338211,0.00021804,2]
[311419285,1705082347117,282.36378265,0.00021804,2]
[311419286,1705082347509,1890.54671534,0.00021804,2]
[311419287,1705082348541,6072.64665498,0.00021804,2]
[311419288,1705082348718,532.75409653,0.00021804,2]
[311419289,1705082349505,845.11321729,0.00021804,2]
[311419290,1705082352450,856.04090584,0.00021804,2]
[311419291,1705082352968,1021.19252463,0.00021804,2]
[311419292,1705082355279,543.47920788,0.00021804,2]
[311419293,1705082355909,18932.66999613,0.00021804,2]
[311419294,1705082356701,621.10234536,0.00022078,2]
[311419295,1705082358369,176.8097185,0.00021804,2]
[311419296,1705082360211,360.50027838,0.00021804,2]
[311419297,1705082363080,15683.21613264,0.00021804,2]
[311419298,1705082363329,728.00554382,0.00021,2]
[311419299,1705082364446,291.33503489,0.00021804,2]
[311419300,1705082364968,883.53200133,0.00021804,2]
[311419301,1705082365095,282.10772217,0.00021804,2]
[311419302,1705082366562,6072.64665498,0.00021804,2]
[311419303,1705082367512,850.29410141,0.00021804,2]
[311419304,1705082368468,-1955.3491,0.00022497,2]
[311419305,1705082368489,-44.6509,0.00022563,2]
[311419306,1705082369076,-2000.0,0.00022563,2]
[311419307,1705082369662,-1078.36105947,0.00022563,2]
[311419308,1705082369684,-730.54,0.00022563,2]
[311419309,1705082369705,-191.09894053,0.00022564,2]
[311419310,1705082370229,-533.23105947,0.00022564,2]
[311419311,1705082370252,-301.90910224,0.00022595,2]
[311419312,1705082370274,-1164.85983829,0.00022595,2]
[311419313,1705082370737,532.75409653,0.00021804,2]
[311419314,1705082371222,-2000.0,0.00022595,2]
[311419315,1705082372773,621.10234536,0.00021691,2]
[311419316,1705082372805,-2000.0,0.00022595,2]
[311419317,1705082373914,-2000.0,0.00022595,2]
[311419318,1705082374337,5182.0088255,0.00021804,2]
[311419319,1705082374501,856.04090584,0.00021804,2]
[311419320,1705082374539,-2000.0,0.00022595,2]
[311419321,1705082374981,1021.19252463,0.00021804,2]
[311419322,1705082377295,575.67191605,0.00021804,2]
[311419323,1705082377977,18932.66999613,0.00021804,2]
[311419324,1705082378811,15683.21613264,0.00021804,2]
[311419325,1705082381337,728.00554382,0.00021,2]
[311419326,1705082382223,360.79817652,0.00021804,2]
[311419327,1705082382436,291.71338211,0.00021804,2]
[311419328,1705082382970,472.30843214,0.00021804,2]
[311419329,1705082383095,282.36378265,0.00021804,2]
[311419330,1705082384166,452.23219098,0.00018076,2]
[311419331,1705082384208,1838.89593157,0.00021804,2]
[311419332,1705082386563,6072.64665498,0.00021804,2]
[311419333,1705082388264,176.09,0.00022,2]
[311419334,1705082388722,532.75409653,0.00021804,2]
[311419335,1705082389082,3123.01195947,0.00021465,2]
[311419336,1705082390456,856.04090584,0.00021804,2]
[311419337,1705082390672,621.10234536,0.00021691,2]
[311419338,1705082391957,-2000.0,0.00022496,2]
[311419339,1705082394644,2979.47080485,0.00021804,2]
[311419340,1705082394686,18932.66999613,0.00021804,2]
[311419341,1705082398810,11508.02759407,0.00021804,2]
[311419342,1705082399107,282.36378265,0.00021804,2]
[311419343,1705082400446,291.71338211,0.00021804,2]
[311419344,1705082400975,725.1056492,0.00021804,2]
[311419345,1705082402218,237.10487311,0.00021804,2]
[311419346,1705082402556,5501.37700132,0.00021804,2]
[311419347,1705082403333,417.6537997,0.00021,2]
[311419348,1705082405974,360.02648272,0.00018076,2]
[311419349,1705082406299,-472.84586929,0.00022496,2]
[311419350,1705082406325,-1527.15413071,0.00022497,2]
[311419351,1705082406787,532.75409653,0.00021804,2]
[311419353,1705082410467,856.04090584,0.00021804,2]
[311419354,1705082411221,3123.01195947,0.00021465,2]
[311419355,1705082412685,619.988884,0.00021691,2]
[311419356,1705082412761,-158.48029498,0.00022495,2]
[311419357,1705082412784,-923.51970502,0.00022496,2]
[311419358,1705082419117,282.36378265,0.00021804,2]
[311419359,1705082420429,5462.44366819,0.00021804,2]
[311419360,1705082423155,2472.84586929,0.00022308,2]
[311419361,1705082424726,532.75409653,0.00021804,2]
[311419362,1705082427972,361.5472874,0.00018398,2]
[311419363,1705082428677,620.82398002,0.00022078,2]
[311419364,1705082430468,365.3476021,0.00021804,2]
[311419365,1705082432445,300.3404617,0.00021804,2]
[311419366,1705082433084,3123.01195947,0.00021848,2]
[311419367,1705082440742,532.75409653,0.00021804,2]
[311419368,1705082441102,2472.84586929,0.00021919,2]
[311419369,1705082446789,620.82398002,0.00021693,2]
[311419370,1705082447825,464.470261,0.00022382,2]
[311419371,1705082451318,1816.90883331,0.00021753,2]
[311419372,1705082451348,282.36378265,0.00021848,2]
[311419373,1705082451700,165.43,0.00021643,2]
[311419374,1705082457751,200.0,0.00021643,2]
[311419375,1705082459108,1381.93806572,0.00022211,2]
[311419376,1705082460678,605.10609869,0.00021982,2]
[311419377,1705082462733,316.97059909,0.00021848,2]
[311419378,1705082469112,354.99435634,0.00021848,2]
[311419381,1705082519229,18365.81,0.00021643,2]
[311419383,1705082532826,1482.46232596,0.00021766,2]
[311419384,1705082532885,1321.53541025,0.00022204,2]
[311419385,1705082533684,1482.46232596,0.00022085,2]
[311419386,1705082534000,1482.46232596,0.00022222,2]
[311419388,1705082623328,159.88,0.00021878,2]
[311419389,1705082655541,1482.46232596,0.00022228,2]
[311419390,1705082667282,292.54,0.00019709,2]
[311419391,1705082667591,292.54,0.00021973,2]
[311419394,1705082694096,158.76,0.00021627,2]
[311419397,1705082702520,150.0,0.00022417,2]
[311419398,1705082703100,150.0,0.00022389,2]
[311419399,1705082703742,150.0,0.00022403,2]
[311419400,1705082703807,150.0,0.00022415,2]
[311419401,1705082704059,150.0,0.00022367,2]
[311419402,1705082704104,150.0,0.00022428,2]
[311419403,1705082704168,150.0,0.0002244,2]
[311419407,1705082719360,150.0,0.00022394,2]
[311419408,1705082720063,150.0,0.00022369,2]
[311419409,1705082720140,150.0,0.00022372,2]
[311419410,1705082730210,25176.04701542,0.00022371,2]
[311419411,1705082751822,25176.04701542,0.00022371,2]
[311419412,1705082767436,246.75786482,0.00022371,2]
[311419413,1705082772255,25176.04701542,0.00022371,2]
[311419414,1705082780966,166.36,0.00021706,2]
[311419415,1705082781425,246.75786482,0.00022369,2]
[311419416,1705082795562,250.0,0.0002154,2]
[311419417,1705082797867,188.44,0.0002154,2]
[311419418,1705082798920,175.32,0.00016712,2]
[311419419,1705082801818,1955.35334006,0.00022232,2]
[311419420,1705082803447,246.75786482,0.00022232,2]
[311419421,1705082823427,398.55200366,0.00022232,2]
[311419422,1705082824531,265.0,0.0002245,2]
[311419423,1705082824683,3041.02252982,0.0002245,2]
[311419424,1705082825028,33342.02053043,0.0002245,2]
[311419425,1705082827437,215.30779776,0.0002245,2]
[311419426,1705082828100,211.4343928,0.0002245,2]
[311419427,1705082829126,-558.15325618,0.00022451,2]
[311419428,1705082829145,-1647.99754643,0.00022451,2]
[311419429,1705082830680,230.32449907,0.0002245,2]
[311419430,1705082830915,400.06896681,0.0002245,2]
[311419431,1705082832300,2317.09975572,0.0002245,2]
[311419432,1705082834694,1362.20209022,0.0002245,2]
[311419433,1705082834735,263.08356569,0.0002245,2]
[311419434,1705082835485,939.56400894,0.0002245,2]
[311419435,1705082835929,472.70124021,0.0002245,2]
[311419436,1705082836094,150.0,0.00021534,2]
[311419437,1705082838181,3187.14443099,0.0002245,2]
[311419438,1705082838209,376.44759867,0.0002245,2]
[311419439,1705082841410,215.30779776,0.00022429,2]
[311419440,1705082841779,558.15325618,0.0002234,2]